fUST/lending_fUST_20260218
["ID","MTS","AMOUNT","RATE_DAILY","PERIOD"]
[405931236,1771421445977,-500.0,0.00014226,2]
[405931238,1771421445986,-389.39991263,0.00014226,2]
[405931800,1771422262230,175.0,0.0001384,25]
[405931801,1771422390139,-166.66666666,0.0001374,2]
[405931802,1771422390160,-56.30871954,0.0001384,2]
[405931803,1771422422123,-41.09279186,0.0001384,25]
[405931816,1771422632156,-765.0,0.00013565,2]
[405931817,1771422632166,-615.0,0.00013702,2]
[405931818,1771422632175,-150.0,0.0001384,2]
[405931819,1771422632185,-300.0,0.00013892,2]
[405931820,1771422632195,-1200.0,0.00013892,2]
[405931821,1771422632204,-177.95639894,0.00013892,2]
[405931822,1771422632213,-300.0,0.00013893,2]
[405931823,1771422632223,-500.0,0.00013894,2]
[405931824,1771422632233,-1497.84320443,0.00013895,2]
[405931825,1771422632244,-572.62277611,0.00013895,2]
[405931827,1771422632256,-1135.17384433,0.00013895,2]
[405931829,1771422632267,-1631.27643668,0.00013895,2]
[405931838,1771422638369,-18708.42121981,0.00013756,2]
[405931839,1771422638379,-16585.46339577,0.00013895,2]
[405931840,1771422638388,-2122.95782404,0.00013895,2]
[405931841,1771422638397,-150.0,0.00014031,2]
[405931842,1771422638407,-500.0,0.00014168,2]
[405931843,1771422638416,-210.38512036,0.00014176,2]
[405931844,1771422638425,-500.0,0.00014442,2]
[405931846,1771422638434,-500.0,0.00014509,2]
[405931848,1771422638443,-500.0,0.00014509,2]
[405931849,1771422638451,-510.20987561,0.00014509,2]
[405931851,1771422638461,-521.848783,0.00014509,2]
[405931853,1771422638470,-500.0,0.00014509,2]
[405931855,1771422638479,-300.0,0.0001451,2]
[405931856,1771422638488,-300.0,0.0001451,2]
[405931857,1771422638497,-300.0,0.0001451,2]
[405931859,1771422638506,-300.0,0.0001451,2]
[405931861,1771422638515,-300.0,0.0001451,2]
[405931862,1771422638524,-300.0,0.0001451,2]
[405931864,1771422638533,-300.0,0.0001451,2]
[405931866,1771422638542,-300.0,0.0001451,2]
[405931868,1771422638551,-300.0,0.0001451,2]
[405931869,1771422638560,-300.0,0.0001451,2]
[405931870,1771422638569,-300.0,0.0001451,2]
[405931871,1771422638578,-300.0,0.0001451,2]
[405931872,1771422638587,-300.0,0.0001451,2]
[405931873,1771422638596,-300.0,0.0001451,2]
[405931874,1771422638605,-300.0,0.0001451,2]
[405931875,1771422638614,-600.0,0.0001451,2]
[405931876,1771422638623,-500.0,0.00014716,2]
[405931877,1771422638632,-420.0,0.00015221,2]
[405931878,1771422638641,-1017.0,0.00015281,2]
[405931879,1771422638651,-255.88946454,0.00015853,7]
[405931880,1771422638659,-720.0,0.0001596,2]
[405931881,1771422638669,-177.0,0.00016031,2]
[405931882,1771422638679,-151.0,0.00016438,2]
[405931883,1771422638688,-1023.55785814,0.00016613,7]
[405931884,1771422638697,-424.82499018,0.00016613,7]
[405931885,1771422638706,-365.0,0.00016677,2]
[405931886,1771422638715,-500.0,0.00016985,2]
[405931887,1771422638724,-159.59058738,0.00017342,7]
[405931888,1771422638734,-864.0,0.00017556,2]
[405931889,1771422638743,-500.0,0.00017585,2]
[405931890,1771422638751,-150.0,0.00017808,2]
[405931891,1771422638760,-221.50333,0.00017854,2]
[405931892,1771422638770,-4369.1279121,0.00018016,2]
[405931893,1771422638779,-194.20182576,0.00018171,2]
[405931894,1771422638788,-776.80730305,0.00018171,2]
[405931895,1771422638797,-1746.06861544,0.00018171,2]
[405931896,1771422638806,-338.79086818,0.00018171,2]
[405931897,1771422638815,-322.4118229,0.00018171,2]
[405931898,1771422638824,-579.76093995,0.00018171,2]
[405931899,1771422638832,-250.0,0.00018356,2]
[405931900,1771422638842,-743.5267485,0.00018773,2]
[405931901,1771422638851,-350.0,0.00018904,2]
[405931902,1771422638860,-188.718,0.00019178,2]
[405931903,1771422638870,-250.0,0.00019228,2]
[405931904,1771422638880,-250.0,0.00019228,2]
[405931905,1771422638891,-264.40984106,0.00019228,2]
[405931906,1771422638900,-250.0,0.00019228,2]
[405931907,1771422638911,-250.0,0.00019228,2]
[405931908,1771422638922,-250.0,0.00019228,2]
[405931909,1771422638932,-250.0,0.00019228,2]
[405931910,1771422638943,-250.0,0.00019228,2]
[405931911,1771422638954,-250.0,0.00019228,2]
[405931912,1771422638965,-250.0,0.00019228,2]
[405931913,1771422638978,-250.0,0.00019228,2]
[405931914,1771422638986,-250.0,0.00019228,2]
[405931915,1771422638995,-250.0,0.00019228,2]
[405931916,1771422639005,-250.0,0.00019228,2]
[405931917,1771422639015,-250.0,0.00019228,2]
[405931918,1771422639024,-250.0,0.00019228,2]
[405931919,1771422639033,-250.0,0.00019228,2]
[405931920,1771422639042,-250.0,0.00019228,2]
[405931921,1771422639052,-250.0,0.00019228,2]
[405931922,1771422639061,-159.39164934,0.00019228,2]
[405931923,1771422639070,-168.3888056,0.00019228,2]
[405931924,1771422639079,-250.0,0.00019228,2]
[405931925,1771422639088,-250.0,0.00019228,2]
[405931926,1771422639097,-250.0,0.00019228,2]
[405931927,1771422639106,-174.61919141,0.00019228,2]
[405931928,1771422639115,-250.0,0.00019228,2]
[405931929,1771422639124,-250.0,0.00019228,2]
[405931930,1771422639134,-250.0,0.00019228,2]
[405931931,1771422639143,-181.08010149,0.00019228,2]
[405931932,1771422639152,-750.0,0.00019228,2]
[405931933,1771422639162,-250.0,0.00019228,2]
[405931934,1771422639171,-250.0,0.00019228,2]
[405931935,1771422639180,-250.0,0.00019228,2]
[405931936,1771422639190,-187.78006525,0.00019228,2]
[405931937,1771422639199,-750.0,0.00019228,2]
[405931938,1771422639208,-250.0,0.00019228,2]
[405931939,1771422639217,-250.0,0.00019228,2]
[405931940,1771422639226,-407.1363071,0.00019228,2]
[405931941,1771422639235,-250.0,0.00019228,2]
[405931942,1771422639243,-194.72792766,0.00019228,2]
[405931943,1771422639252,-750.0,0.00019228,2]
[405931944,1771422639261,-250.0,0.00019228,2]
[405931945,1771422639271,-250.0,0.00019228,2]
[405931946,1771422639280,-250.0,0.00019228,2]
[405931947,1771422639288,-201.93286099,0.00019228,2]
[405931948,1771422639297,-396.94196752,0.00019228,2]
[405931949,1771422639306,-253.4084362,0.00019228,2]
[405931950,1771422639315,-250.0,0.00019228,2]
[405931951,1771422639324,-250.0,0.00019228,2]
[405931952,1771422639333,-209.40437684,0.00019228,2]
[405931953,1771422639341,-250.0,0.00019228,2]
[405931954,1771422639350,-250.0,0.00019228,2]
[405931955,1771422639359,-217.15233878,0.00019228,2]
[405931956,1771422639368,-250.0,0.00019228,2]
[405931957,1771422639377,-250.0,0.00019228,2]
[405931958,1771422639385,-225.18697532,0.00019228,2]
[405931959,1771422639394,-250.0,0.00019228,2]
[405931960,1771422639403,-250.0,0.00019228,2]
[405931961,1771422639412,-2000.0,0.00019228,2]
[405931962,1771422639420,-233.51889341,0.00019228,2]
[405931963,1771422639429,-250.0,0.00019228,2]
[405931964,1771422639439,-250.0,0.00019228,2]
[405931965,1771422639448,-2074.0,0.00019228,2]
[405931966,1771422639456,-242.15909246,0.00019228,2]
[405931967,1771422639465,-250.0,0.00019228,2]
[405931968,1771422639474,-250.0,0.00019228,2]
[405931969,1771422639483,-236.96831155,0.00019228,2]
[405931970,1771422639492,-251.11897888,0.00019228,2]
[405931971,1771422639501,-250.0,0.00019228,2]
[405931972,1771422639510,-260.4103811,0.00019228,2]
[405931973,1771422639519,-151.0,0.00019228,2]
[405931974,1771422639527,-305.92716569,0.00019228,2]
[405931975,1771422639537,-500.0,0.00019228,2]
[405931976,1771422639545,-151.0,0.00019228,2]
[405931977,1771422639554,-270.0455652,0.00019228,2]
[405931978,1771422639563,-500.0,0.00019228,2]
[405931979,1771422639573,-151.0,0.00019228,2]
[405931980,1771422639582,-347.49116071,0.00019228,2]
[405931981,1771422639591,-500.0,0.00019228,2]
[405931982,1771422639599,-167.9292335,0.00019228,2]
[405931983,1771422639613,-500.0,0.00019228,2]
[405931984,1771422639622,-500.0,0.00019228,2]
[405931985,1771422639631,-250.0,0.00019228,2]
[405931986,1771422639640,-500.0,0.00019228,2]
[405931987,1771422639649,-250.0,0.00019228,2]
[405931988,1771422639657,-500.0,0.00019228,2]
[405931989,1771422639666,-309.15612472,0.00019228,2]
[405931990,1771422639675,-500.0,0.00019228,2]
[405931991,1771422639685,-500.0,0.00019228,2]
[405931992,1771422639694,-500.0,0.00019228,2]
[405931993,1771422639703,-500.0,0.00019228,2]
[405931994,1771422639712,-500.0,0.00019228,2]
[405931995,1771422639722,-200.0,0.00019228,2]
[405931996,1771422639731,-1000.0,0.00019312,2]
[405931997,1771422639741,-300.0,0.00019452,2]
[405931998,1771422639750,-1587.0,0.0001971,5]
[405931999,1771422639759,-186.3477388,0.00020537,2]
[405932000,1771422639768,-302.0,0.00020839,2]
[405932001,1771422639777,-500.0,0.00020899,2]
[405932002,1771422639785,-6800.57869971,0.000209,6]
[405932003,1771422639794,-509.84,0.000209,2]
[405932004,1771422639803,-500.0,0.00020966,2]
[405932005,1771422639812,-500.0,0.00020966,2]
[405932006,1771422639821,-6383.97,0.0002099,3]
[405932007,1771422639829,-3191.98,0.0002099,3]
[405932008,1771422639838,-1595.99,0.0002099,3]
[405932009,1771422639847,-798.0,0.0002099,3]
[405932010,1771422639856,-399.0,0.0002099,3]
[405932011,1771422639865,-199.5,0.0002099,3]
[405932012,1771422639874,-598.51,0.0002099,3]
[405932013,1771422639883,-39247.23279492,0.00021,2]
[405932029,1771422640589,-1291.40599167,0.0002099,10]
[405932607,1771422646183,-295.59400833,0.0002099,10]
[405932609,1771422646194,-6275.7272438,0.0002099,10]
[405933243,1771423606227,-185.4005312,0.0001334,2]
[405933276,1771423832310,-600.0,0.00014027,2]
[405933277,1771423832319,-156.0,0.00014064,4]
[405933278,1771423832328,-600.0,0.00014169,2]
[405933279,1771423832337,-720.0,0.00015586,2]
[405933280,1771423832347,-500.0,0.00015972,2]
[405933281,1771423832355,-181.0,0.00016438,2]
[405933282,1771423832364,-864.0,0.00017144,2]
[405933283,1771423832373,-150.0,0.00017808,2]
[405933284,1771423832382,-188.277831,0.00018267,2]
[405933285,1771423832391,-153.46252019,0.00018356,2]
[405933286,1771423832400,-743.5267485,0.00018595,2]
[405933287,1771423832409,-794.401029,0.00018756,2]
[405933293,1771423838406,-576.08935204,0.00018755,2]
[405933294,1771423838415,-500.0,0.00018755,2]
[405933295,1771423838424,-500.0,0.00018755,2]
[405933296,1771423838438,-500.0,0.00018755,2]
[405933297,1771423838447,-500.0,0.00018755,2]
[405933298,1771423838456,-500.0,0.00018755,2]
[405933299,1771423838465,-500.0,0.00018755,2]
[405933300,1771423838475,-500.0,0.00018755,2]
[405933301,1771423838485,-500.0,0.00018755,2]
[405933302,1771423838494,-500.0,0.00018755,2]
[405933303,1771423838504,-500.0,0.00018755,2]
[405933304,1771423838513,-500.0,0.00018755,2]
[405933305,1771423838522,-500.0,0.00018755,2]
[405933306,1771423838532,-614.49315039,0.00018755,2]
[405933307,1771423838541,-500.0,0.00018755,2]
[405933308,1771423838549,-500.0,0.00018755,2]
[405933309,1771423838559,-500.0,0.00018755,2]
[405933310,1771423838567,-500.0,0.00018755,2]
[405933311,1771423838576,-500.0,0.00018755,2]
[405933312,1771423838585,-500.0,0.00018755,2]
[405933313,1771423838594,-500.0,0.00018755,2]
[405933314,1771423838603,-398.26678886,0.00018755,2]
[405933315,1771423838612,-500.0,0.00018755,2]
[405933316,1771423838621,-500.0,0.00018755,2]
[405933317,1771423838630,-500.0,0.00018755,2]
[405933318,1771423838638,-515.52008454,0.00018755,2]
[405933319,1771423838647,-500.0,0.00018755,2]
[405933320,1771423838656,-500.0,0.00018755,2]
[405933321,1771423838665,-500.0,0.00018755,2]
[405933322,1771423838674,-500.0,0.00018755,2]
[405933323,1771423838683,-500.0,0.00018755,2]
[405933324,1771423838691,-500.0,0.00018755,2]
[405933325,1771423838700,-500.0,0.00018755,2]
[405933326,1771423838710,-500.0,0.00018755,2]
[405933327,1771423838719,-500.0,0.00018755,2]
[405933328,1771423838728,-500.0,0.00018755,2]
[405933329,1771423838737,-500.0,0.00018755,2]
[405933330,1771423838747,-500.0,0.00018755,2]
[405933331,1771423838756,-500.0,0.00018755,2]
[405933332,1771423838766,-500.0,0.00018755,2]
[405933333,1771423838775,-500.0,0.00018755,2]
[405933334,1771423838785,-500.0,0.00018755,2]
[405933335,1771423838794,-500.0,0.00018755,2]
[405933336,1771423838803,-500.0,0.00018755,2]
[405933337,1771423838813,-500.0,0.00018755,2]
[405933338,1771423838823,-500.0,0.00018755,2]
[405933339,1771423838833,-500.0,0.00018755,2]
[405933340,1771423838843,-500.0,0.00018755,2]
[405933341,1771423838853,-500.0,0.00018755,2]
[405933342,1771423838862,-500.0,0.00018755,2]
[405933343,1771423838873,-500.0,0.00018755,2]
[405933344,1771423838882,-297.74478407,0.00018755,2]
[405933345,1771423838892,-500.0,0.00018755,2]
[405933346,1771423838902,-500.0,0.00018755,2]
[405933347,1771423838911,-500.0,0.00018755,2]
[405933348,1771423838921,-2234.20942192,0.00018756,2]
[405933349,1771423838931,-1000.0,0.00018859,2]
[405933350,1771423838940,-188.277831,0.00019549,2]
[405933351,1771423838950,-1455.0,0.0001956,5]
[405933352,1771423839075,-1192.4102808,0.00020719,2]
[405933353,1771423839085,-1000.0,0.00020745,2]
[405933354,1771423839095,-244.0,0.00020745,2]
[405933355,1771423839104,-188.277831,0.0002083,2]
[405933356,1771423839114,-163.34717076,0.000209,4]
[405933357,1771423839123,-186.3477388,0.0002099,2]
[405933358,1771423839133,-188.71805115,0.0002099,2]
[405933359,1771423839142,-34765.90341361,0.00021,2]
[405933360,1771423839152,-1579.31225329,0.00021,2]
[405933925,1771423846059,-3283.81634276,0.00018567,2]
[405933956,1771423846344,-1659.51782246,0.00018567,2]
[405934192,1771425032502,-190.874309,0.00016817,2]
[405934193,1771425032511,-666.0,0.00016817,2]
[405934194,1771425032521,-190.874309,0.00016986,2]
[405934195,1771425032530,-150.0,0.00017917,2]
[405934196,1771425032539,-188.0,0.00017994,5]
[405934197,1771425032548,-300.0,0.00017999,2]
[405934198,1771425032561,-300.0,0.00017999,2]
[405934199,1771425032570,-252.0,0.00017999,2]
[405934200,1771425032579,-300.0,0.00017999,2]
[405934201,1771425032588,-1174.0,0.00017999,2]
[405934202,1771425032597,-4991.32259174,0.00018,2]
[405934213,1771425038659,-500.0,0.00017999,2]
[405934214,1771425038668,-433.14075432,0.00017999,2]
[405934215,1771425038678,-501.72445384,0.00017999,2]
[405934216,1771425038687,-500.0,0.00017999,2]
[405934217,1771425038697,-500.0,0.00017999,2]
[405934218,1771425038706,-623.83257226,0.00017999,2]
[405934219,1771425038716,-500.0,0.00017999,2]
[405934220,1771425038725,-379.7744784,0.00017999,2]
[405934221,1771425038734,-24516.93584701,0.00018,2]
[405934222,1771425038743,-2212.03763568,0.00018,2]
[405934224,1771425038753,-743.5267485,0.00018562,2]
[405934226,1771425038762,-189.94,0.000187,2]
[405934227,1771425038772,-1394.0,0.00019875,5]
[405934228,1771425038781,-154.25101283,0.00019917,2]
[405934229,1771425038794,-301.75970808,0.0002,2]
[405934230,1771425038803,-235.64191,0.00020121,2]
[405934231,1771425038814,-4461.66956108,0.00021,2]
[405934232,1771425038822,-173.71,0.00021,2]
[405934233,1771425038833,-1900.0,0.00021,2]
[405934234,1771425038843,-170.0,0.00021229,120]
[405934235,1771425038851,-150.0,0.00021918,2]
[405934236,1771425038861,-2043.0,0.00022,3]
[405934237,1771425038870,-188.277831,0.00022112,2]
[405934238,1771425038879,-600.0,0.00022439,10]
[405934239,1771425038889,-300.0,0.00022466,2]
[405934240,1771425038898,-25563.39134977,0.00024,60]
[405934274,1771425040975,-1152.13518109,0.00024,60]
[405934276,1771425040984,-1278.0,0.00024,10]
[405934278,1771425040993,-151.0,0.00024658,2]
[405934280,1771425041002,-720.0,0.00024683,10]
[405934282,1771425041011,-160.0,0.00024767,14]
[405934284,1771425041020,-2000.0,0.00024889,2]
[405934286,1771425041029,-151.0,0.000249,2]
[405934288,1771425041038,-151.0,0.000249,2]
[405934290,1771425041047,-2099.65,0.00025,2]
[405934292,1771425041056,-181.97,0.00025,7]
[405934294,1771425041066,-3465.75487917,0.00026699,10]
[405934696,1771425046809,-390.609297,0.00024411,2]
[405934697,1771425046821,-151.0,0.00024658,2]
[405934698,1771425046831,-239.609297,0.00024658,2]
[405934699,1771425046840,-1230.0,0.00026699,10]
[405934700,1771425046849,-151.0,0.00026729,2]
[405934701,1771425046860,-151.0,0.00026759,2]
[405934702,1771425046871,-316.39,0.00026769,3]
[405934703,1771425046881,-252.997811,0.00026769,2]
[405934704,1771425046891,-474.6,0.00026799,3]
[405934705,1771425046899,-151.0,0.00026799,2]
[405934706,1771425046908,-793.67875364,0.00026799,2]
[405934707,1771425046919,-4988.8,0.00026799,2]
[405934708,1771426009143,-219.2179007,0.00013428,2]
[405934734,1771426231748,-611.0,0.00013428,2]
[405934736,1771426231758,-150.0,0.00013496,2]
[405934738,1771426231767,-500.0,0.0001372,2]
[405934740,1771426231776,-285.47410271,0.00015496,2]
[405934741,1771426231785,-500.0,0.00017033,2]
[405934743,1771426231794,-406.62680955,0.0001719,2]
[405934750,1771426237783,-1111.0,0.00013294,2]
[405934751,1771426237793,-93.37319045,0.0001719,2]
[405934752,1771426237804,-1232.0,0.00020139,10]
[405934753,1771426237814,-743.5267485,0.0002348,2]
[405934754,1771426237823,-1151.6561626,0.00024856,2]
[405934755,1771426237832,-155.98,0.00025,7]
[405934756,1771426237840,-153.30827538,0.00026768,2]
[405934757,1771426237850,-2000.0,0.00026769,120]
[405934758,1771426237859,-300.0,0.00026798,2]
[405934759,1771426237868,-2000.0,0.00026799,120]
[405934760,1771426237877,-2000.0,0.00026799,120]
[405934761,1771426237886,-2000.0,0.00026799,120]
[405934762,1771426237895,-2000.0,0.00026799,120]
[405934764,1771426237904,-2000.0,0.00026799,120]
[405934765,1771426237913,-2000.0,0.00026799,120]
[405934766,1771426237922,-655.005,0.00026799,120]
[405934767,1771426237932,-2000.0,0.00026818,2]
[405934768,1771426237940,-155.98,0.00027649,7]
[405934769,1771426237950,-600.0,0.00027944,30]
[405934770,1771426237959,-1003.51494069,0.00028,5]
[405934771,1771426237969,-150.0,0.00028,5]
[405934772,1771426237980,-250.0,0.00028548,5]
[405934773,1771426237991,-2790.301706,0.00029,2]
[405934774,1771426238002,-350.0,0.00029096,5]
[405934775,1771426238011,-1500.0,0.000295,2]
[405934776,1771426238020,-2000.0,0.00029558,12]
[405934777,1771426238029,-450.0,0.00029644,5]
[405934778,1771426238038,-254.044232,0.00029898,7]
[405934779,1771426238048,-500.0,0.0003,30]
[405934780,1771426238057,-264.866,0.0003,2]
[405934781,1771426238066,-485.81490251,0.0003,60]
[405934782,1771426238075,-163.73789976,0.0003,60]
[405934783,1771426238085,-11502.23,0.0003,30]
[405934784,1771426238094,-1500.0,0.0003,2]
[405934785,1771426238104,-550.0,0.00030192,5]
[405934786,1771426238113,-155.98,0.00030298,30]
[405934787,1771426238122,-720.0,0.00030739,30]
[405934788,1771426238132,-650.0,0.0003074,5]
[405934789,1771426238144,-750.0,0.00031288,5]
[405934790,1771426238153,-11502.23,0.000315,30]
[405934791,1771426238162,-850.0,0.00031836,5]
[405934792,1771426238171,-320.2,0.00032,5]
[405934793,1771426238181,-2000.0,0.00032298,22]
[405934794,1771426238190,-950.0,0.00032384,5]
[405934795,1771426238199,-182.299609,0.000324,7]
[405934796,1771426238210,-182.299609,0.000324,7]
[405934797,1771426238219,-182.299609,0.000324,7]
[405934798,1771426238228,-182.299609,0.000324,7]
[405934799,1771426238238,-315.24,0.00032866,3]
[405934800,1771426238247,-630.48,0.0003287,3]
[405934801,1771426238256,-224.13209823,0.00032876,19]
[405934802,1771426238265,-500.0,0.00032876,19]
[405934803,1771426238275,-500.0,0.00032876,19]
[405934804,1771426238284,-136.20040786,0.00032876,7]
[405935461,1771426245818,-151.0,0.00032,7]
[405935463,1771426245827,-229.72749351,0.0003286,10]
[405936241,1771427196130,-188.78226815,0.000156,2]
[405936243,1771427224676,5000.0,0.000156,120]
[405936244,1771427247882,5000.0,0.000156,120]
[405936261,1771427431914,-661.28810856,0.00015444,2]
[405936325,1771427440440,-2239.22224991,0.00015444,2]
[405936932,1771427446459,-232.60796938,0.00015444,2]
[405936933,1771427446469,-194.04928066,0.00015522,2]
[405936934,1771427446479,-3133.11832785,0.000156,2]
[405936935,1771427446488,-1290.0,0.00019988,5]
[405936936,1771427446498,-105.78666315,0.00020201,2]
[405936937,1771427446578,-60.88000351,0.00020201,2]
[405936938,1771427446588,-300.0,0.00020553,2]
[405936939,1771427446598,-500.0,0.00020554,2]
[405936940,1771427446607,-500.0,0.00020554,2]
[405936941,1771427446616,-207.16181579,0.00020554,2]
[405936942,1771427446626,-500.0,0.00020554,2]
[405936943,1771427446636,-500.0,0.00020554,2]
[405936944,1771427446645,-500.0,0.00020554,2]
[405936945,1771427446654,-500.0,0.00020554,2]
[405936946,1771427446663,-500.0,0.00020554,2]
[405936947,1771427446672,-500.0,0.00020554,2]
[405936949,1771427446682,-500.0,0.00020554,2]
[405936951,1771427446691,-500.0,0.00020554,2]
[405936953,1771427446701,-500.0,0.00020554,2]
[405936955,1771427446710,-500.0,0.00020554,2]
[405936957,1771427446719,-581.7074685,0.00020554,2]
[405936959,1771427446728,-426.0,0.00020555,2]
[405936961,1771427446737,-181.0,0.00020555,2]
[405936963,1771427446747,-420.0,0.00022367,2]
[405936965,1771427446756,-393.36836437,0.00024067,2]
[405936967,1771427446766,-587.0,0.00024341,2]
[405936969,1771427446775,-235.6419109,0.00026477,2]
[405936971,1771427446784,-606.0,0.0002649,2]
[405936972,1771427446793,-743.5267485,0.00026573,2]
[405936974,1771427446804,-150.0,0.00028,5]
[405936976,1771427446815,-250.0,0.00028548,5]
[405936978,1771427446825,-350.0,0.00029096,5]
[405936980,1771427446835,-150.53086162,0.000291,2]
[405936982,1771427446844,-161.8385825,0.00029583,2]
[405936984,1771427446854,-808.4978712,0.00029583,2]
[405936986,1771427446863,-450.0,0.00029644,5]
[405936988,1771427446872,-10735.41,0.0003,30]
[405936990,1771427446883,-3355.66184324,0.00030037,2]
[405936992,1771427446892,-550.0,0.00030192,5]
[405936994,1771427446903,-318.3696984,0.00030385,2]
[405936996,1771427446912,-650.0,0.0003074,5]
[405936998,1771427446922,-750.0,0.00031288,5]
[405937000,1771427446931,-321.22212425,0.00031291,2]
[405937002,1771427446940,-3355.66184318,0.00031446,2]
[405937004,1771427446951,-10735.41,0.000315,30]
[405937006,1771427446960,-165.28235,0.000315,7]
[405937008,1771427446970,-503.95357614,0.00031836,5]
[405937010,1771427446980,-157.89058992,0.00032109,2]
[405937012,1771427446989,-178.31481418,0.00032109,2]
[405937014,1771427446998,-150.0,0.00032109,2]
[405937016,1771427447008,-150.0,0.00032109,2]
[405937018,1771427447017,-173.77215765,0.00032109,2]
[405937020,1771427447027,-154.0704792,0.00032109,2]
[405937022,1771427447037,-150.0,0.00032164,2]
[405937024,1771427447047,-150.0,0.00032164,2]
[405937026,1771427447057,-150.0,0.00032219,2]
[405937028,1771427447066,-213.90317119,0.00032219,2]
[405937030,1771427447075,-238.39671084,0.00032273,2]
[405937032,1771427447087,-500.0,0.00032328,2]
[405937034,1771427447095,-500.0,0.00032383,2]
[405937036,1771427447105,-319.88154144,0.00032438,2]
[405937038,1771427447114,-2258.870737,0.00032438,7]
[405937040,1771427447123,-2258.870737,0.00032438,7]
[405937042,1771427447132,-2258.870737,0.00032438,7]
[405937044,1771427447142,-2258.870737,0.00032438,7]
[405937046,1771427447154,-743.5267485,0.000328,7]
[405937048,1771427447163,-2258.870737,0.000328,7]
[405937050,1771427447172,-2258.870737,0.000328,7]
[405937052,1771427447181,-2258.870737,0.000328,7]
[405937054,1771427447190,-2258.870737,0.000328,7]
[405937056,1771427447199,-1057.645495,0.000328,10]
[405937058,1771427447209,-731.3,0.00032826,3]
[405937060,1771427447219,-27465.59,0.00032826,10]
[405937062,1771427447230,-1950.01,0.00032836,3]
[405937064,1771427447240,-2258.870737,0.00032836,7]
[405937066,1771427447249,-2258.870737,0.00032836,7]
[405937068,1771427447258,-2258.870737,0.00032836,7]
[405937070,1771427447267,-2258.870737,0.00032836,7]
[405937072,1771427447276,-2258.870737,0.00032836,7]
[405937074,1771427447286,-2258.870737,0.00032836,7]
[405937076,1771427447295,-975.01,0.00032836,3]
[405937078,1771427447304,-2258.870737,0.00032836,7]
[405937080,1771427447312,-2258.870737,0.00032836,7]
[405937082,1771427447322,-243.75,0.00032836,3]
[405937084,1771427447333,-16057.8374131,0.00032836,2]
[405937086,1771427447342,-16057.8374131,0.00032846,2]
[405937088,1771427447351,-3900.02,0.00032846,3]
[405937090,1771427447360,-2258.870737,0.00032846,7]
[405937092,1771427447370,-2258.870737,0.00032846,7]
[405937094,1771427447380,-2258.870737,0.00032846,7]
[405937096,1771427447397,-2258.870738,0.00032846,7]
[405937098,1771427447406,-3355.66184318,0.00032855,2]
[405937100,1771427447415,-487.5,0.00032856,3]
[405937102,1771427447424,-16057.8374131,0.00032866,2]
[405937104,1771427447433,-500.0,0.00032876,19]
[405937106,1771427447444,-500.0,0.00032876,19]
[405937108,1771427447454,-500.0,0.00032876,19]
[405937110,1771427447463,-237.05899201,0.00032876,19]
[405937112,1771427447472,-1840.85,0.00032876,19]
[405937114,1771427447481,-1161.19,0.00032876,7]
[405937116,1771427447490,-528.942972,0.00032876,19]
[405937118,1771427447499,-500.0,0.00032876,19]